[Event "Satka Autumn 2018"]
[Site "Satka"]
[Date "2018.09.17"]
[Round "7"]
[White "Mironenko, Galina"]
[Black "Mikheeva, Galina"]
[Result "1-0"]
[ECO "A80"]
[WhiteElo "2021"]
[BlackElo "1767"]
[Annotator "NA RC"]
[PlyCount "73"]
[EventDate "2018.09.11"]
[EventType "swiss"]
[EventCountry "RUS"]
[SourceTitle "playchess.com"]
[Source "ChessBase"]
[SourceQuality "1"]
[TimeControl "40/5400+30:1800+30"]

{[%evp 8,61,63,41,83,64,80,55,87,71,66,75,102,91,130,120,125,106,163,138,227,238,223,162,199,177,191,196,240,233,32767,32767,32767,183,185,116,192,131,230,220,340,339,349,356,32767,275,257,242,630,688,603,466,656,693,800,902]} 1. d4 {[%emt 0:00:00]} f5 {[%emt 0:00:00]} 2. Bf4 {[%emt 0:00:00]} Nf6 {[%emt 0:00:03]} 3. e3 {[%emt 0:00:00]} g6 {[%emt 0:00:06]} 4. h4 {[%emt 0:00:00]} h6 {[%emt 0:00:21] A80: Dutch Defence: Unusual White second moves} 5. Nc3 {[%emt 0:00:40]} Bg7 {[%emt 0:00:47] LiveBook: 6 Games} (5... d6 6. Qf3 c6 7. O-O-O Be6 8. Bd3 Qa5 9. a3 Nbd7 10. e4 O-O-O 11. Nge2 fxe4 12. Nxe4 {½-½ (40) Sjugirov,S (2650)-Nepomniachtchi,I (2729) Riadh 2017}) 6. Bc4 {[%emt 0:00:06]} d6 {[%emt 0:01:42]} 7. Qf3 {[%emt 0:02:58]} Nbd7 $146 {[%emt 0:15:52]} ({Predecessor:} 7... e6 8. Qg3 Kf7 9. Be2 Nc6 10. O-O-O Qe7 11. Nh3 {0-1 (44) Bortnyk,O (2600)-Gasanov,E (2482) Omelnyk 2017}) 8. O-O-O {[%emt 0:07:32]} c6 {[%emt 0:03:50]} 9. Nge2 {[%emt 0:13:56]} d5 {[%emt 0:05:20]} 10. Bd3 {[%emt 0:01:01]} Nf8 {[%emt 0:31:28]} 11. Be5 {[%emt 0:05:54]} e6 {[%emt 0:02:38]} 12. Nf4 {[%emt 0:04:38]} Kf7 {[%emt 0:01:07]} 13. Qg3 {[%emt 0:11:06]} Ng4 {[%emt 0:05:53]} (13... Rg8 {is a better defense.} 14. Kb1 Ng4) 14. Bxg7 {[%emt 0:03:18]} Kxg7 {[%emt 0:00:05]} 15. Rde1 {[%emt 0:04:43]} Kf7 {[%emt 0:06:41]} 16. f3 {[%emt 0:02:56]} Nf6 {[%emt 0:00:06]} 17. Qf2 {[%emt 0:05:14]} Qd6 {[%emt 0:05:28]} (17... h5 $142 18. Qg3 Qd6) 18. g4 {[%emt 0:08:29]} Bd7 {[%emt 0:05:41]} 19. gxf5 {[%emt 0:03:40]} exf5 {[%emt 0:00:20]} 20. Rhg1 {[%emt 0:00:46]} Rg8 {[%emt 0:00:51] [#]} 21. Bf1 {[%emt 0:00:53]} ({White should try} 21. Qd2 $1 $18) 21... Be6 {[%emt 0:01:08]} (21... Ne6 $16) 22. Nd3 {[%emt 0:01:49]} N8d7 {[%emt 0:00:17] [#]} (22... Kg7 $16 {kämpft weiter.}) 23. e4 $1 {[%emt 0:01:55]} Qc7 {[%emt 0:03:18]} (23... Nh5 $142 24. Qe3 f4) 24. Qe3 {[%emt 0:01:34]} dxe4 {[%emt 0:04:20]} 25. fxe4 {[%emt 0:00:49]} Ng4 {[%emt 0:01:26]} 26. Rxg4 {[%emt 0:04:37]} fxg4 {[%emt 0:00:03]} 27. d5 {[%emt 0:00:06]} g5 $2 {[%emt 0:02:34]} (27... Bxd5 28. exd5 Rae8 29. Qxh6 (29. Qf2+ Kg7 $18) 29... Rh8) 28. dxe6+ {[%emt 0:00:47]} Kxe6 {[%emt 0:00:06]} 29. Be2 {[%emt 0:02:22]} Ke7 {[%emt 0:02:10]} 30. Bxg4 {[%emt 0:01:49]} Qb6 {[%emt 0:00:36]} 31. Qg3 $18 {[%emt 0:01:33]} Raf8 {[%emt 0:00:26]} 32. Ne5 {[%emt 0:02:44]} Nf6 {[%emt 0:00:18]} 33. Nc4 {[%emt 0:00:37]} Qc5 {[%emt 0:00:12]} 34. Qc7+ {[%emt 0:00:13]} Nd7 {[%emt 0:00:53]} 35. Qxd7+ {[%emt 0:00:09]} Kf6 {[%emt 0:00:06]} 36. e5+ {[%emt 0:00:24]} Kg6 {[%emt 0:00:07]} 37. h5# {[%emt 0:00:05]} 1-0

[Event "Satka Autumn 2018"]
[Site "Satka"]
[Date "2018.09.17"]
[Round "7"]
[White "Simakova, Elena"]
[Black "Nasybullina, Dayana"]
[Result "1/2-1/2"]
[ECO "C10"]
[WhiteElo "1935"]
[BlackElo "1809"]
[Annotator "NA RC"]
[PlyCount "80"]
[EventDate "2018.09.11"]
[EventType "swiss"]
[EventCountry "RUS"]
[SourceTitle "playchess.com"]
[Source "ChessBase"]
[SourceQuality "1"]
[TimeControl "40/5400+30:1800+30"]

{[%evp 9,80,33,29,23,34,27,36,25,30,26,26,16,31,7,15,12,12,0,0,0,0,-13,0,-3,0,-12,0,32767,0,-7,0,-43,-30,32767,32767,32767,32767,32767,32767,-63,-72,-66,-37,-49,-43,-45,-41,-31,-29,-58,-46,-45,-50,-51,-45,-68,-53,-51,-17,-17,-17,-23,-17,-14,-13,-26,-23,-20,0,-17,0,32767,0]} 1. e4 {[%emt 0:00:00]} e6 {[%emt 0:00:23]} 2. d4 {[%emt 0:00:00]} d5 {[%emt 0:00:06]} 3. Nd2 {[%emt 0:00:00]} dxe4 {[%emt 0:00:08]} 4. Nxe4 {[%emt 0:00:00]} Nd7 {[%emt 0:00:09]} 5. Nf3 {[%emt 0:00:07]} Ngf6 {[%emt 0:00:07]} 6. Nxf6+ {[%emt 0:00:09]} Nxf6 {[%emt 0:00:27]} 7. c3 {[%emt 0:00:14]} Be7 {[%emt 0:00:26]} 8. Bd3 {[%emt 0:00:26]} O-O {[%emt 0:00:09]} 9. O-O {[%emt 0:00:16]} b6 {[%emt 0:00:16]} 10. Qe2 {[%emt 0:00:46]} Bb7 {[%emt 0:00:13]} 11. Bg5 {[%emt 0:01:37]} h6 {[%emt 0:02:58] LiveBook: 15 Games C10: French with 3 Nc3: Unusual Black 3rd moves and 3...dxe4} 12. Bh4 {[%emt 0:00:11]} Qd5 {[%emt 0:02:33]} (12... Nh5 13. Bxe7 Qxe7 14. Qe3 Nf6 15. a4 c5 16. dxc5 bxc5 17. Rfd1 Rfd8 18. Ne5 Qc7 19. Bc4 {½-½ (66) Sjugirov,S (2610)-Matlakov,M (2603) Chotowa 2010}) 13. Bc4 {[%emt 0:10:33]} Qh5 {[%emt 0:03:30]} 14. Bg3 {[%emt 0:09:40]} c5 $146 {[%emt 0:01:39]} ({Predecessor:} 14... Bd6 15. Ne5 Qxe2 16. Bxe2 Ne4 17. Bf4 Nf6 18. Rad1 Rad8 19. Rd2 {½-½ (34) Seidel,S-Kruck,M Bensheim 1997}) 15. Rad1 {[%emt 0:02:00]} cxd4 {[%emt 0:07:49]} 16. Rxd4 {[%emt 0:11:36]} Rfd8 {[%emt 0:01:14]} 17. Rfd1 {[%emt 0:02:46]} Rxd4 {[%emt 0:00:34]} 18. Rxd4 {[%emt 0:06:06]} Bc5 {[%emt 0:04:39]} 19. Rd1 {[%emt 0:03:44]} Ne4 {[%emt 0:09:21]} 20. Nd4 {[%emt 0:23:59]} Nxg3 {[%emt 0:01:32]} 21. hxg3 {[%emt 0:00:11]} Qxe2 {[%emt 0:00:20]} 22. Nxe2 {[%emt 0:00:21]} Bc6 {[%emt 0:00:38]} 23. b4 {[%emt 0:05:37]} Be7 {[%emt 0:00:37]} 24. b5 {[%emt 0:04:59]} Be8 {[%emt 0:00:46]} 25. a4 {[%emt 0:07:02]} Rd8 {[%emt 0:01:46]} 26. Rxd8 {[%emt 0:00:18]} Bxd8 {[%emt 0:00:04]} 27. Nd4 {[%emt 0:01:48]} Kf8 {[%emt 0:00:24]} 28. Kf1 {[%emt 0:03:19]} Bf6 {[%emt 0:00:46]} 29. Nc6 {[%emt 0:02:40]} Bxc6 {[%emt 0:00:39]} 30. bxc6 {[%emt 0:00:03]} Ke7 {[%emt 0:00:51]} 31. Bb5 {[%emt 0:00:39]} Kd6 {[%emt 0:00:41]} 32. c4 {[%emt 0:00:16]} Bd4 {[%emt 0:00:38]} 33. Ke2 {[%emt 0:00:47]} a6 {[%emt 0:01:13]} 34. Bxa6 {[%emt 0:00:29]} Kxc6 {[%emt 0:00:11]} 35. g4 {[%emt 0:00:27]} Kd6 {[%emt 0:00:19]} 36. Bb5 {[%emt 0:02:35]} Bc5 {[%emt 0:00:19]} 37. Be8 {[%emt 0:00:18]} Ke7 {[%emt 0:00:18]} 38. Bb5 {[%emt 0:00:07]} Kd6 {[%emt 0:00:17]} 39. Be8 {[%emt 0:00:29]} Ke7 {[%emt 0:00:10]} 40. Bb5 {[%emt 0:00:00]} Kd6 {[%emt 0:00:00]} 1/2-1/2

[Event "Satka Autumn 2018"]
[Site "Satka"]
[Date "2018.09.17"]
[Round "7"]
[White "Stroganova, Karina"]
[Black "Mirgalina, Anna"]
[Result "1-0"]
[ECO "E18"]
[WhiteElo "1711"]
[BlackElo "1339"]
[Annotator "NA RC"]
[PlyCount "43"]
[EventDate "2018.09.11"]
[EventType "swiss"]
[EventCountry "RUS"]
[SourceTitle "playchess.com"]
[Source "ChessBase"]
[SourceQuality "1"]
[TimeControl "40/5400+30:1800+30"]

1. d4 {[%emt 0:00:00]} Nf6 {[%emt 0:00:00]} 2. Nf3 {[%emt 0:00:00]} e6 {[%emt 0:00:00]} 3. c4 {[%emt 0:00:00]} b6 {[%emt 0:00:02]} 4. g3 {[%emt 0:00:13]} Bb7 {[%emt 0:00:07]} 5. Bg2 {[%emt 0:00:06]} Be7 {[%emt 0:00:30]} 6. O-O {[%emt 0:00:17]} O-O {[%emt 0:00:22]} 7. Nc3 {[%emt 0:00:18]} d5 {[%emt 0:00:29]} 8. Ne5 {[%emt 0:02:55]} Nbd7 {[%emt 0:03:35]} 9. Re1 {[%emt 0:01:54]} Rb8 {[%emt 0:03:42]} 10. Qa4 {[%emt 0:01:26]} Nxe5 {[%emt 0:04:09]} 11. dxe5 {[%emt 0:00:08]} Nd7 {[%emt 0:00:08]} 12. cxd5 {[%emt 0:02:01]} exd5 {[%emt 0:03:09]} 13. Nxd5 {[%emt 0:01:12]} Nxe5 {[%emt 0:03:16]} 14. Rd1 {[%emt 0:00:41]} Bd6 {[%emt 0:01:47]} 15. Bf4 {[%emt 0:01:42]} Qe8 {[%emt 0:02:34]} 16. Qxa7 {[%emt 0:01:13]} Nc6 {[%emt 0:17:37]} 17. Qa4 {[%emt 0:00:37]} Qd8 {[%emt 0:10:47]} 18. Bxd6 {[%emt 0:01:22]} Qxd6 {[%emt 0:01:51]} 19. Nxb6 {[%emt 0:00:20]} Qe6 {[%emt 0:00:19]} 20. Nd7 {[%emt 0:00:11]} Rbd8 {[%emt 0:02:49]} 21. Nxf8 {[%emt 0:00:17]} Rxf8 {[%emt 0:00:19]} 22. Rac1 1-0

[Event "Satka Autumn 2018"]
[Site "Satka"]
[Date "2018.09.17"]
[Round "7"]
[White "Telelyukhina, Elizaveta"]
[Black "Skobochkina, Maria"]
[Result "1/2-1/2"]
[ECO "A04"]
[WhiteElo "1403"]
[BlackElo "1294"]
[Annotator "NA RC"]
[PlyCount "80"]
[EventDate "2018.09.11"]
[EventType "swiss"]
[EventCountry "RUS"]
[SourceTitle "playchess.com"]
[Source "ChessBase"]
[SourceQuality "1"]
[TimeControl "40/5400+30:1800+30"]

1. Nf3 {[%emt 0:00:00]} Nc6 {[%emt 0:00:03]} 2. g3 {[%emt 0:00:00]} e5 {[%emt 0:00:57]} 3. d3 {[%emt 0:00:00]} d5 {[%emt 0:01:18]} 4. Bg2 {[%emt 0:00:08]} Nf6 {[%emt 0:00:54]} 5. O-O {[%emt 0:00:31]} Be7 {[%emt 0:02:03]} 6. Nbd2 {[%emt 0:00:53]} O-O {[%emt 0:01:08]} 7. e4 {[%emt 0:01:37]} Bg4 {[%emt 0:02:22]} 8. h3 {[%emt 0:00:31]} Bh5 {[%emt 0:03:18]} 9. Re1 {[%emt 0:03:50]} Qd6 {[%emt 0:03:29]} 10. b3 {[%emt 0:03:05]} Nd4 {[%emt 0:05:39]} 11. Bb2 {[%emt 0:03:34]} Nxf3+ {[%emt 0:02:02]} 12. Nxf3 {[%emt 0:00:23]} d4 {[%emt 0:00:32]} 13. Qe2 {[%emt 0:02:02]} c5 {[%emt 0:04:38]} 14. g4 {[%emt 0:00:23]} Bg6 {[%emt 0:01:04]} 15. Nd2 {[%emt 0:03:06]} b5 {[%emt 0:01:31]} 16. f4 {[%emt 0:03:24]} h6 {[%emt 0:02:29]} 17. f5 {[%emt 0:02:43]} Bh7 {[%emt 0:00:27]} 18. Red1 {[%emt 0:02:52]} Nd7 {[%emt 0:02:04]} 19. a3 {[%emt 0:01:17]} Bg5 {[%emt 0:01:11]} 20. Nf3 {[%emt 0:02:23]} Be3+ {[%emt 0:03:08]} 21. Kh1 {[%emt 0:00:31]} Qf6 {[%emt 0:02:45]} 22. Bc1 {[%emt 0:08:15]} Bxc1 {[%emt 0:01:16]} 23. Raxc1 {[%emt 0:00:08]} Rfe8 {[%emt 0:01:07]} 24. b4 {[%emt 0:00:36]} cxb4 {[%emt 0:01:20]} 25. axb4 {[%emt 0:00:14]} Rac8 {[%emt 0:02:18]} 26. Ra1 {[%emt 0:00:39]} a6 {[%emt 0:00:47]} 27. Ra2 {[%emt 0:00:12]} Qd6 {[%emt 0:02:38]} 28. Qd2 {[%emt 0:00:15]} Rc3 {[%emt 0:02:02]} 29. Rb1 {[%emt 0:01:30]} Rec8 {[%emt 0:00:49]} 30. Qd1 {[%emt 0:01:04]} Kf8 {[%emt 0:02:11]} 31. Qd2 {[%emt 0:00:09]} Bg8 {[%emt 0:00:59]} 32. Ne1 {[%emt 0:00:33]} f6 {[%emt 0:00:46]} 33. Rab2 {[%emt 0:00:50]} Nb6 {[%emt 0:01:42]} 34. Ra1 {[%emt 0:00:10]} Na4 {[%emt 0:01:14]} 35. Rbb1 {[%emt 0:00:47]} Bf7 {[%emt 0:01:17]} 36. Bf3 {[%emt 0:02:23]} Ke7 {[%emt 0:02:49]} 37. Bd1 {[%emt 0:00:12]} R3c6 {[%emt 0:01:59]} 38. Kg2 {[%emt 0:02:38]} Nc3 {[%emt 0:01:02]} 39. Rb2 {[%emt 0:00:44]} Na4 {[%emt 0:03:31]} 40. Rbb1 {[%emt 0:00:00]} Nc3 {[%emt 0:00:00]} 1/2-1/2

[Event "Satka Autumn 2018"]
[Site "Satka"]
[Date "2018.09.17"]
[Round "7"]
[White "Nikolaeva, Daria S"]
[Black "Svetlova, Ksenia"]
[Result "0-1"]
[ECO "B50"]
[WhiteElo "1164"]
[BlackElo "1696"]
[Annotator "NA RC"]
[PlyCount "56"]
[EventDate "2018.09.11"]
[EventType "swiss"]
[EventCountry "RUS"]
[SourceTitle "playchess.com"]
[Source "ChessBase"]
[SourceQuality "1"]
[TimeControl "40/5400+30:1800+30"]

1. e4 {[%emt 0:00:00]} c5 {[%emt 0:00:00]} 2. Nf3 {[%emt 0:00:00]} d6 {[%emt 0:00:00]} 3. h3 {[%emt 0:00:22]} Nc6 {[%emt 0:00:00]} 4. Nc3 {[%emt 0:00:26]} g6 {[%emt 0:00:00]} 5. Bc4 {[%emt 0:00:40]} Bg7 {[%emt 0:00:05]} 6. d3 {[%emt 0:00:37]} Nf6 {[%emt 0:01:26]} 7. O-O {[%emt 0:01:19]} O-O {[%emt 0:00:06]} 8. Be3 {[%emt 0:01:22]} Na5 {[%emt 0:08:35]} 9. Bb3 {[%emt 0:04:24]} a6 {[%emt 0:01:13]} 10. e5 {[%emt 0:08:49]} dxe5 {[%emt 0:00:42]} 11. Nxe5 {[%emt 0:00:16]} Nxb3 {[%emt 0:00:08]} 12. axb3 {[%emt 0:00:22]} Nd5 {[%emt 0:00:28]} 13. d4 {[%emt 0:03:05]} Nxe3 {[%emt 0:00:57]} 14. fxe3 {[%emt 0:00:43]} Qc7 {[%emt 0:15:13]} 15. Nf3 {[%emt 0:12:24]} Rd8 {[%emt 0:01:39]} 16. Ne2 {[%emt 0:03:38]} Bf5 {[%emt 0:00:15]} 17. c3 {[%emt 0:02:44]} e5 {[%emt 0:05:30]} 18. Rc1 {[%emt 0:08:44]} Qb6 {[%emt 0:00:11]} 19. Nh4 {[%emt 0:10:58]} Be6 {[%emt 0:00:46]} 20. c4 {[%emt 0:05:43]} exd4 {[%emt 0:00:08]} 21. exd4 {[%emt 0:00:20]} cxd4 {[%emt 0:00:18]} 22. Qd3 {[%emt 0:02:00]} Qc5 {[%emt 0:00:31]} 23. Rcd1 {[%emt 0:02:19]} Rd7 {[%emt 0:02:11]} 24. Rd2 {[%emt 0:01:34]} Rad8 {[%emt 0:00:28]} 25. Rfd1 {[%emt 0:00:36]} Bh6 {[%emt 0:00:29]} 26. Rc2 {[%emt 0:01:22]} Be3+ {[%emt 0:00:02]} 27. Kh1 {[%emt 0:01:20]} Qh5 {[%emt 0:00:04]} 28. Nf3 {[%emt 0:04:25]} Bf5 {[%emt 0:00:13]} 0-1

[Event "Satka Autumn 2018"]
[Site "Satka"]
[Date "2018.09.18"]
[Round "8"]
[White "Makarenko, Alexandra"]
[Black "Trapeznikova, Darya"]
[Result "1-0"]
[ECO "C60"]
[WhiteElo "2247"]
[BlackElo "2107"]
[Annotator "NA"]
[PlyCount "79"]
[EventDate "2018.09.11"]
[EventType "swiss"]
[EventCountry "RUS"]
[SourceTitle "playchess.com"]
[Source "ChessBase"]
[SourceQuality "1"]
[TimeControl "40/5400+30:1800+30"]

{[%evp 8,73,47,47,43,18,35,28,0,18,53,32767,70,83,84,76,72,75,109,115,112,85,152,139,197,207,208,114,110,118,149,131,169,147,155,167,165,152,146,159,147,151,141,114,175,150,168,32767,32767,32767,32767,32767,32767,32767,32767,32767,239,256,32767,462,417,404,430,470,495,436,408,476]} 1. e4 {[%emt 0:00:00]} e5 {[%emt 0:00:00]} 2. Nf3 {[%emt 0:00:00]} Nc6 {[%emt 0:00:00]} 3. Bb5 {[%emt 0:00:00]} Nge7 {[%emt 0:00:04]} 4. Nc3 {[%emt 0:00:55]} g6 {[%emt 0:02:31]} 5. d4 {[%emt 0:00:05]} exd4 {[%emt 0:01:34]} 6. Nxd4 {[%emt 0:02:23]} Bg7 {[%emt 0:00:46]} 7. Be3 {[%emt 0:00:07] LiveBook: 30 Games} O-O {[%emt 0:01:36] C60: Ruy Lopez: Unusual Black 3rd moves and 3...g6} 8. Qd2 {[%emt 0:00:47]} (8. O-O d5 9. Nxd5 Nxd5 10. exd5 Nxd4 11. Bxd4 Qxd5 12. Bxg7 Qxd1 13. Raxd1 Kxg7 14. Bd7 Rd8 15. Bxc8 Raxc8 16. f4 Kf6 17. Kf2 Re8 18. Rd4 Rcd8 19. Rfd1 Rxd4 20. Rxd4 {½-½ (20) Brkic,A (2552)-Bosiocic,M (2610) Valpovo 2017}) 8... a6 {[%emt 0:06:27]} 9. Be2 {[%emt 0:01:52]} d6 {[%emt 0:06:49]} 10. O-O-O {[%emt 0:02:08]} b5 {[%emt 0:04:16]} 11. Nxc6 {[%emt 0:06:25]} Nxc6 {[%emt 0:00:21]} 12. Bh6 {[%emt 0:00:46]} Re8 $146 {[%emt 0:09:44]} ({Predecessor:} 12... Be6 13. h4 Bxh6 14. Qxh6 Ne5 15. f4 {1-0 (36) Zboril,R (2332)-Carnevale,R (2279) ICCF email 2010}) 13. Bxg7 {[%emt 0:07:02]} Kxg7 {[%emt 0:00:06]} 14. Nd5 {[%emt 0:01:24]} Bd7 {[%emt 0:12:28]} ({Better is} 14... Rxe4 15. Bf3 Re5) 15. f3 {[%emt 0:03:38]} b4 {[%emt 0:07:14]} 16. h4 {[%emt 0:03:51]} h6 {[%emt 0:07:57]} 17. Nxb4 {[%emt 0:16:03]} ({White should play} 17. Kb1 $18) 17... Nxb4 {[%emt 0:00:14]} 18. Qxb4 {[%emt 0:00:09]} Be6 {[%emt 0:06:10]} 19. Qd4+ {[%emt 0:04:09]} Kg8 {[%emt 0:02:56]} 20. Bc4 {[%emt 0:03:03]} Bxc4 {[%emt 0:00:33]} 21. Qxc4 {[%emt 0:00:04]} Re5 {[%emt 0:00:13]} 22. f4 {[%emt 0:00:48]} Rb5 {[%emt 0:01:42]} 23. a4 {[%emt 0:07:31]} Rb6 {[%emt 0:01:00]} 24. f5 {[%emt 0:05:47]} gxf5 {[%emt 0:03:03]} 25. exf5 {[%emt 0:20:12]} Rab8 {[%emt 0:02:31]} (25... Qf6 $16 {was worth a try.}) 26. b3 {[%emt 0:01:19]} Qf6 {[%emt 0:01:02]} 27. Qg4+ {[%emt 0:02:28]} Kh7 {[%emt 0:00:28]} 28. Qd4 {[%emt 0:00:25]} Qxf5 {[%emt 0:05:22]} 29. Rhf1 {[%emt 0:00:32]} Qg6 {[%emt 0:00:14]} 30. Rf6 {[%emt 0:00:55]} Qg7 {[%emt 0:04:50]} 31. Rdf1 {[%emt 0:00:04]} Kg8 {[%emt 0:03:28]} 32. Qe3 {[%emt 0:07:08]} d5 {[%emt 0:01:47]} 33. Rxf7 {[%emt 0:01:13]} Qxf7 {[%emt 0:00:22]} 34. Rxf7 {[%emt 0:00:04]} Kxf7 {[%emt 0:00:03]} 35. Qf4+ {[%emt 0:00:13]} Kg6 {[%emt 0:01:22]} 36. Qxc7 {[%emt 0:00:47]} R8b7 {[%emt 0:00:14]} 37. Qe5 $18 {[%emt 0:00:25]} Rd7 {[%emt 0:03:04]} 38. Qe8+ {[%emt 0:00:05]} Rf7 {[%emt 0:00:04]} 39. Qg8+ {[%emt 0:00:04]} Rg7 {[%emt 0:00:13]} 40. h5+ {[%emt 0:00:00]} 1-0

[Event "Satka Autumn 2018"]
[Site "Satka"]
[Date "2018.09.18"]
[Round "8"]
[White "Simakova, Elena"]
[Black "Sosnina, Nadezhda"]
[Result "1-0"]
[ECO "B74"]
[WhiteElo "1935"]
[BlackElo "1659"]
[Annotator "NA RC"]
[PlyCount "69"]
[EventDate "2018.09.11"]
[EventType "swiss"]
[EventCountry "RUS"]
[SourceTitle "playchess.com"]
[Source "ChessBase"]
[SourceQuality "1"]
[TimeControl "40/5400+30:1800+30"]

{[%evp 11,68,13,12,25,25,18,28,6,37,15,38,37,32767,0,127,118,214,206,200,196,204,213,259,212,324,166,379,276,268,261,307,325,32767,32767,538,580,952,32767,32767,32767,32767,32767,32767,32767,32767,32767,32767,32767,32767,32767,32767,32767,32767,32767,32767,32767,32767,32767,29994]} 1. e4 {[%emt 0:00:00]} c5 {[%emt 0:00:00]} 2. Nf3 {[%emt 0:00:00]} d6 {[%emt 0:00:00]} 3. d4 {[%emt 0:00:00]} cxd4 {[%emt 0:00:00]} 4. Nxd4 {[%emt 0:00:00]} Nf6 {[%emt 0:00:00]} 5. Nc3 {[%emt 0:00:00]} g6 {[%emt 0:00:00]} 6. Be2 {[%emt 0:06:16]} Bg7 {[%emt 0:00:15]} 7. Be3 {[%emt 0:05:28]} O-O {[%emt 0:00:11]} 8. O-O {[%emt 0:02:02]} Nc6 {[%emt 0:00:06]} 9. Nb3 {[%emt 0:02:34]} Bd7 {[%emt 0:00:59]} 10. h3 {[%emt 0:13:43]} Rc8 {[%emt 0:01:01] LiveBook: 3 Games B73: Sicilian Dragon: Classical System without 9 Nb3} (10... a6 11. a4 Na5 12. Nxa5 Qxa5 13. Qd2 Rfc8 14. Bd3 Qb4 15. a5 Qxb2 16. Na4 Bxa4 17. Rxa4 Qe5 18. Rb1 d5 19. f4 {0-1 (38) Styazhkina,A (2289)-Neverov,V (2478) New Delhi 2017}) 11. f4 {[%emt 0:01:40]} a6 {[%emt 0:02:42]} 12. a4 {[%emt 0:01:08]} Na5 {[%emt 0:01:26]} (12... Be6 $11 {remains equal.}) 13. e5 {[%emt 0:09:53]} Nxb3 $146 {[%emt 0:39:18]} (13... Rxc3 $16 14. bxc3 Ne4) ({Predecessor:} 13... Ne8 14. Nd5 Nxb3 15. Bb6 Nxa1 16. Bxd8 Rxd8 17. Nxe7+ Kh8 18. Qxa1 dxe5 19. fxe5 Bxe5 {0-1 (32) Grollemund,B (2163)-Grosse,L (1842) Montpellier 2013}) 14. exf6 {[%emt 0:03:52]} ({And not} 14. cxb3 Ne8 $11) 14... Nxa1 {[%emt 0:00:38]} 15. fxg7 {[%emt 0:00:06]} Kxg7 {[%emt 0:00:37]} 16. Qxa1 {[%emt 0:03:58]} Bf5 {[%emt 0:06:02]} 17. Qd1 {[%emt 0:05:55]} Qa5 {[%emt 0:07:22]} 18. Bd3 {[%emt 0:06:36]} (18. g4 $142 Bd7 19. Nd5) 18... Rfd8 $2 {[%emt 0:02:55]} (18... f6 19. Be2 Qb4) 19. Bxf5 {[%emt 0:11:11]} Qxf5 {[%emt 0:00:02]} 20. Bd4+ {[%emt 0:02:10]} Kg8 {[%emt 0:01:46]} 21. g4 {[%emt 0:04:25]} Qe6 {[%emt 0:05:08]} 22. Re1 {[%emt 0:02:05]} Qd7 {[%emt 0:04:27]} 23. Nd5 {[%emt 0:01:02]} Rb8 {[%emt 0:05:08]} 24. Rxe7 {[%emt 0:08:00]} Qxa4 {[%emt 0:00:43]} 25. b3 {[%emt 0:01:33]} Qc6 {[%emt 0:02:16]} 26. c4 {[%emt 0:03:44]} Kf8 {[%emt 0:01:21]} 27. Rc7 {[%emt 0:02:07]} Qe8 {[%emt 0:00:28]} 28. Nf6 {[%emt 0:00:47]} Qe6 {[%emt 0:00:11]} 29. Nxh7+ {[%emt 0:00:27]} Kg8 {[%emt 0:00:14]} 30. Ng5 {[%emt 0:00:51]} Qe8 {[%emt 0:00:21]} 31. Rxf7 {[%emt 0:01:58]} Rd7 {[%emt 0:00:55]} 32. Rxd7 {[%emt 0:01:15]} Qxd7 {[%emt 0:00:01]} 33. Bc3 {[%emt 0:00:35]} Qc6 {[%emt 0:01:24]} 34. Qd3 {[%emt 0:00:34]} Qe8 {[%emt 0:01:31]} 35. Qd4 {[%emt 0:00:16]} 1-0